bitfinex/quotes_SOLUSD_20220129
["timestamp","ask_amount","ask_price","bid_price","bid_amount"]
[1643445377667,0.25,97.168,97.095,0.25]
[1643445377868,6.0,97.159,97.095,0.25]
[1643445378168,6.0,97.159,97.096,3.94204809]
[1643445378394,6.0,97.159,97.097,0.25]
[1643445378395,0.25,97.158,97.097,0.25]
[1643445378570,0.25,97.158,97.098,3.94204809]
[1643445379470,0.25,97.158,97.088,2.85121619]
[1643445379674,0.25,97.158,97.086,2.85121619]
[1643445379871,0.25,97.158,97.089,2.21401427]
[1643445380073,0.25,97.158,97.096,2.85121619]
[1643445380472,0.25,97.158,97.094,2.85121619]
[1643445380672,0.25,97.158,97.095,2.85121619]
[1643445380872,0.25,97.158,97.096,3.10121619]
[1643445381070,0.25,97.158,97.093,0.25]
[1643445381071,0.25,97.158,97.106,6.0]
[1643445381273,0.25,97.158,97.107,4.19204809]
[1643445381474,0.25,97.158,97.107,0.25]
[1643445381872,0.25,97.158,97.108,9.93796361]
[1643445382072,0.25,97.158,97.109,6.0]
[1643445382672,0.25,97.158,97.106,6.0]
[1643445382872,0.25,97.158,97.107,0.25]
[1643445383880,0.25,97.168,97.108,2.21401427]
[1643445384080,0.25,97.168,97.118,6.0]
[1643445384281,33.9038723,97.169,97.118,6.0]
[1643445385686,0.25,97.168,97.118,6.0]
[1643445386104,6.0,97.19,97.118,6.0]
[1643445386301,0.25,97.189,97.118,6.0]
[1643445387001,46.05799569,97.189,97.118,6.0]
[1643445387202,46.05799569,97.189,97.108,2.21401427]
[1643445387401,46.05799569,97.189,97.118,6.0]
[1643445387601,46.05799569,97.189,97.11,6.0]
[1643445388003,46.05799569,97.189,97.111,6.25]
[1643445388202,46.05799569,97.189,97.111,6.0]
[1643445388403,46.05799569,97.189,97.1,24.4572]
[1643445388605,55.12799569,97.189,97.11,6.0]
[1643445389405,6.0,97.179,97.1,24.4572]
[1643445389805,0.25,97.178,97.1,24.4572]
[1643445390406,0.25,97.178,97.101,3.93800796]
[1643445391108,0.25,97.178,97.1,24.4572]
[1643445392408,0.25,97.178,97.101,3.93885087]
[1643445392608,0.25,97.178,97.1,24.4572]
[1643445393014,0.25,97.178,97.11,6.0]
[1643445393410,0.25,97.188,97.11,6.0]
[1643445395010,0.25,97.188,97.1,24.4572]
[1643445395411,0.25,97.188,97.11,6.0]
[1643445395611,0.25,97.188,97.111,6.0]
[1643445395811,0.25,97.188,97.1,24.4572]
[1643445396011,0.25,97.188,97.101,3.93649003]
[1643445396412,6.0,97.179,97.101,3.93649003]
[1643445396912,0.25,97.178,97.101,3.93649003]
[1643445398314,0.25,97.188,97.102,2.85121619]
[1643445398512,6.0,97.179,97.103,2.85121619]
[1643445398912,0.25,97.178,97.103,2.85121619]
[1643445399114,0.25,97.178,97.104,2.85121619]
[1643445399312,6.0,97.179,97.103,2.85121619]
[1643445399716,6.0,97.179,97.106,2.85121619]
[1643445400117,6.0,97.179,97.103,2.85121619]
[1643445400517,6.0,97.179,97.107,3.93649003]
[1643445400716,6.0,97.179,97.104,3.93649003]
[1643445400717,0.25,97.178,97.104,3.93649003]
[1643445400915,0.25,97.178,97.106,2.85121619]
[1643445401116,0.25,97.178,97.107,2.85121619]
[1643445401518,0.25,97.178,97.106,2.85121619]
[1643445401719,6.0,97.179,97.106,2.85121619]
[1643445401916,6.0,97.179,97.116,6.0]
[1643445402116,6.0,97.179,97.111,6.0]
[1643445402316,45.80799569,97.189,97.112,4.18649003]
[1643445402522,45.80799569,97.189,97.113,3.93649003]
[1643445402717,45.80799569,97.189,97.112,7.03770622]
[1643445402917,45.80799569,97.189,97.113,3.93649003]
[1643445403319,0.25,97.188,97.123,6.0]
[1643445403519,6.0,97.179,97.124,6.0]
[1643445403718,0.25,97.178,97.124,6.0]
[1643445404322,0.25,97.178,97.122,6.0]
[1643445404723,0.25,97.178,97.123,9.95054358]
[1643445404922,0.25,97.178,97.123,3.95054358]
[1643445405125,0.25,97.178,97.133,6.0]
[1643445405523,0.25,97.178,97.134,6.0]
[1643445406123,0.25,97.178,97.13,6.0]
[1643445406325,0.25,97.178,97.135,2.21401427]
[1643445406526,0.25,97.178,97.145,6.0]
[1643445406824,15.44,97.25,97.145,6.0]
[1643445407024,15.44,97.25,97.146,4.19979881]
[1643445407227,15.44,97.25,97.147,3.94979881]
[1643445407425,37.77362402,97.249,97.156,6.0]
[1643445407625,6.0,97.239,97.157,6.0]
[1643445408227,0.25,97.238,97.148,0.25]
[1643445408437,0.25,97.238,97.148,6.0]
[1643445408626,0.25,97.238,97.157,6.0]
[1643445409029,0.25,97.238,97.138,23.3468]
[1643445410235,0.25,97.238,97.139,2.21401427]
[1643445410438,0.25,97.238,97.139,6.15629195]
[1643445410637,15.443,97.23,97.139,2.21401427]
[1643445410835,34.59232408,97.229,97.139,2.21401427]
[1643445411035,6.0,97.219,97.139,2.21401427]
[1643445411236,5.5,97.219,97.139,2.21401427]
[1643445411439,0.25,97.218,97.138,23.3468]
[1643445413476,5.5,97.219,97.138,23.3468]
[1643445414774,0.25,97.218,97.138,23.3468]
[1643445415071,0.25,97.218,97.148,6.0]
[1643445415473,0.25,97.218,97.138,23.3468]
[1643445416272,5.5,97.219,97.138,23.3468]
[1643445417572,0.25,97.218,97.138,23.3468]
[1643445419684,0.25,97.218,97.139,19.7218313]
[1643445419876,0.25,97.228,97.148,6.0]
[1643445420075,0.25,97.228,97.15,6.0]
[1643445420476,0.25,97.228,97.14,17.50781703]
[1643445420775,0.25,97.228,97.138,23.3468]
[1643445420982,6.0,97.219,97.138,23.3468]
[1643445421377,0.25,97.218,97.138,23.3468]
[1643445422575,6.0,97.21,97.138,23.3468]
[1643445422779,39.83071326,97.209,97.138,23.3468]
[1643445423077,6.0,97.199,97.138,23.3468]
[1643445423277,0.25,97.198,97.138,23.3468]
[1643445424078,0.25,97.198,97.119,17.50781703]
[1643445425077,0.25,97.198,97.132,6.0]
[1643445429084,6.0,97.199,97.132,6.0]
[1643445429283,0.25,97.198,97.132,6.0]
[1643445433284,6.0,97.199,97.132,6.0]
[1643445434690,0.25,97.198,97.132,6.0]
[1643445435993,6.0,97.189,97.132,6.0]
[1643445436191,40.14769273,97.188,97.132,6.0]
[1643445436389,40.39769273,97.188,97.132,6.0]
[1643445437492,40.39769273,97.188,97.14,6.0]
[1643445437692,40.39769273,97.188,97.14,20.83]
[1643445438294,40.14769273,97.188,97.14,20.83]
[1643445438715,40.14769273,97.188,97.123,2.85121619]
[1643445439115,40.14769273,97.188,97.123,3.94651487]
[1643445439717,0.25,97.187,97.123,3.94651487]
[1643445439918,0.25,97.187,97.124,2.21401427]
[1643445440119,0.25,97.187,97.125,3.94651487]
[1643445440518,40.14769273,97.188,97.126,2.21401427]
[1643445440722,40.14769273,97.188,97.13,14.83]
[1643445441120,40.14769273,97.188,97.131,6.16052914]
[1643445441320,40.14769273,97.188,97.14,6.0]
[1643445441522,40.14769273,97.188,97.142,6.0]
[1643445441920,0.25,97.187,97.142,6.0]
[1643445442323,0.25,97.187,97.141,6.0]
[1643445445428,21.48448113,97.251,97.142,123.7718313]
[1643445445626,51.466,97.27,97.152,6.0]
[1643445445827,51.466,97.27,97.16,14.83]
[1643445446029,51.466,97.27,97.17,6.0]
[1643445446527,33.56065169,97.269,97.17,6.0]
[1643445446728,33.81065169,97.269,97.17,6.0]
[1643445447128,21.437,97.26,97.17,6.0]
[1643445447328,0.25,97.259,97.17,6.0]
[1643445447931,21.437,97.26,97.17,6.0]
[1643445449331,0.25,97.259,97.17,6.0]
[1643445450132,0.25,97.259,97.162,48.8505]
[1643445450734,0.25,97.259,97.17,6.0]
[1643445451832,21.437,97.26,97.17,6.0]
[1643445454239,0.25,97.259,97.17,6.0]
[1643445454437,0.25,97.259,97.17,8.21401427]
[1643445454838,0.25,97.259,97.17,6.0]
[1643445455039,0.25,97.259,97.153,6.0]
[1643445455040,70.0,97.257,97.153,6.0]
[1643445455346,70.0,97.257,97.134,2.21401427]
[1643445455347,15.44,97.25,97.134,2.21401427]
[1643445455539,51.485,97.23,97.109,2.8373996]
[1643445455742,66.315,97.23,97.11,14.83]
[1643445455947,6.0,97.22,97.105,2.8373996]
[1643445456142,44.42531345,97.219,97.092,2.8373996]
[1643445456349,15.451,97.19,97.084,2.8373996]
[1643445456643,6.0,97.18,97.081,6.78408615]
[1643445456840,0.25,97.179,97.081,3.94668655]
[1643445457843,2.95669142,97.178,97.074,2.8373996]
[1643445458044,2.95669142,97.178,97.073,2.8373996]
[1643445458045,20.83,97.17,97.073,2.8373996]
[1643445458247,20.83,97.17,97.045,2.8373996]
[1643445458443,20.83,97.17,97.04,14.83]
[1643445458444,107.00669142,97.169,97.047,2.8373996]
[1643445458643,6.0,97.16,97.046,31.55232952]
[1643445458845,0.25,97.159,97.046,31.55232952]
[1643445459047,3.20669142,97.159,97.046,31.55232952]
[1643445459245,0.25,97.159,97.046,31.55232952]
[1643445459443,6.0,97.15,97.046,31.55232952]
[1643445459642,44.42281583,97.149,97.046,31.55232952]
[1643445459843,6.0,97.14,97.046,31.55232952]
[1643445460047,15.457,97.14,97.046,31.55232952]
[1643445460343,0.25,97.139,97.046,31.55232952]
[1643445461346,33.55968616,97.129,97.04,14.83]
[1643445461545,6.0,97.12,97.04,14.83]
[1643445461943,0.25,97.119,97.04,14.83]
[1643445462544,0.25,97.119,97.025,47.7825]
[1643445462545,0.25,97.119,97.041,29.17392902]
[1643445463747,6.0,97.12,97.041,29.17392902]
[1643445465244,0.25,97.119,97.042,0.25]
[1643445465845,6.0,97.12,97.05,6.0]
[1643445466447,6.0,97.12,97.041,29.17392902]
[1643445467247,0.25,97.119,97.041,29.17392902]
[1643445470748,0.25,97.119,97.05,6.0]
[1643445470949,0.25,97.119,97.041,29.17392902]
[1643445473155,15.462,97.1,97.019,14.97947469]
[1643445473355,0.25,97.099,97.019,14.97947469]
[1643445473552,6.0,97.09,97.019,14.97947469]
[1643445473755,6.0,97.09,96.981,48.4022]
[1643445473955,0.25,97.089,96.981,48.4022]
[1643445474256,33.27957942,97.089,97.017,31.73217665]
[1643445474654,6.0,97.08,97.017,31.73217665]
[1643445474854,0.25,97.079,97.017,31.73217665]
[1643445475855,0.25,97.079,97.018,2.19829822]
[1643445476660,0.25,97.079,97.001,2.19829822]
[1643445476958,0.25,97.079,96.981,50.60049822]
[1643445477158,0.25,97.079,96.99,6.0]
[1643445477761,0.25,97.079,96.991,29.00267817]
[1643445478162,0.25,97.079,96.992,2.19829822]
[1643445479863,15.468,97.07,96.991,26.80437995]
[1643445480065,6.0,97.06,96.991,26.80437995]
[1643445480262,0.25,97.059,96.991,29.00267817]
[1643445480465,0.25,97.059,96.976,2.19829822]
[1643445480662,3.20669142,97.059,96.954,0.2952644]
[1643445481070,6.0,97.05,96.954,0.2952644]
[1643445481268,0.25,97.049,96.954,0.2952644]
[1643445481474,40.51957584,97.049,96.954,0.2952644]
[1643445481869,6.0,97.04,96.954,0.2952644]
[1643445482168,36.303,97.04,96.954,0.2952644]
[1643445482368,3.20669142,97.039,96.954,0.2952644]
[1643445482567,6.0,97.03,96.954,0.2952644]
[1643445482768,33.24898262,97.029,96.954,0.2952644]
[1643445482968,36.20567404,97.029,96.954,0.2952644]
[1643445483167,6.0,97.02,96.954,0.2952644]
[1643445483367,0.25,97.019,96.954,0.2952644]
[1643445484975,0.25,97.019,96.954,1.71291829]
[1643445485580,0.25,97.019,96.954,3.49893841]
[1643445485981,15.478,97.01,96.954,0.2952644]
[1643445486484,6.0,97.0,96.954,0.2952644]
[1643445486981,0.25,96.999,96.954,0.2952644]
[1643445487801,0.25,97.008,96.954,0.2952644]
[1643445488001,6.0,97.0,96.954,0.2952644]
[1643445488404,0.25,96.999,96.954,0.2952644]
[1643445490005,0.25,97.008,96.954,0.2952644]
[1643445490205,15.479,97.0,96.954,0.2952644]
[1643445490406,0.25,96.999,96.954,0.2952644]
[1643445497314,0.25,97.008,96.954,0.2952644]
[1643445497715,41.49470571,97.009,96.958,1.41765389]
[1643445497914,41.49470571,97.009,96.96,7.99883854]
[1643445498114,14.83,97.04,96.96,7.99883854]
[1643445498515,14.83,97.04,96.963,1.41765389]
[1643445498916,14.83,97.04,96.965,1.41765389]
[1643445499218,33.6848579,97.039,96.965,1.41765389]
[1643445499413,33.9348579,97.039,96.965,1.41765389]
[1643445499615,33.9348579,97.039,96.964,1.41765389]
[1643445499817,35.4848579,97.039,96.964,1.41765389]
[1643445500217,35.4848579,97.039,96.965,1.41765389]
[1643445500619,6.0,97.03,96.97,1.41765389]
[1643445500817,0.25,97.029,96.969,1.41765389]
[1643445501417,0.25,97.029,96.97,29.57672067]
[1643445501819,0.25,97.029,96.971,2.19471816]
[1643445502023,0.25,97.029,96.97,27.38200251]
[1643445502227,0.25,97.029,96.971,1.41765389]
[1643445502419,0.25,97.029,96.978,1.41765389]
[1643445502622,33.6848579,97.039,96.97,27.38200251]
[1643445502623,0.25,97.038,96.979,1.41765389]
[1643445502922,0.25,97.038,96.993,1.41765389]
[1643445503119,33.6848579,97.039,96.995,1.41765389]
[1643445504021,33.6848579,97.039,96.996,1.41765389]
[1643445504220,33.6848579,97.039,96.954,0.2952644]
[1643445504221,33.6848579,97.039,96.992,1.41765389]
[1643445504721,0.25,97.038,96.992,1.41765389]
[1643445505322,0.25,97.038,96.982,9.60266078]
[1643445505323,0.25,97.038,96.994,1.41765389]
[1643445505522,0.229958,97.038,96.995,1.41765389]
[1643445505723,15.469,97.06,96.995,1.41765389]
[1643445505948,14.83,97.1,97.014,1.41765389]
[1643445506151,15.3157,97.126,97.029,1.41765389]
[1643445506152,14.83,97.11,97.029,1.41765389]
[1643445506450,14.83,97.11,97.032,1.41765389]
[1643445506649,14.83,97.11,97.021,45.5847]
[1643445506650,36.78655326,97.109,97.042,6.0]
[1643445507052,36.78655326,97.109,97.034,1.41765389]
[1643445507249,36.78655326,97.109,97.035,1.41765389]
[1643445507449,36.78655326,97.109,97.038,1.41765389]
[1643445507650,36.78655326,97.109,97.037,1.41765389]
[1643445507850,38.33655326,97.109,97.037,1.41765389]
[1643445508050,15.463,97.1,97.037,1.41765389]
[1643445508451,15.463,97.1,97.021,45.5847]
[1643445508452,6.0,97.09,97.036,1.41765389]
[1643445508650,6.0,97.09,97.034,1.41765389]
[1643445508851,0.25,97.089,97.029,1.41765389]
[1643445509054,6.0,97.09,97.03,1.41765389]
[1643445509252,34.52340283,97.089,97.027,1.41765389]
[1643445509554,6.0,97.079,97.029,1.41765389]
[1643445509751,6.0,97.079,97.027,1.41765389]
[1643445510353,0.25,97.078,97.027,1.41765389]
[1643445510752,0.25,97.078,97.024,1.41765389]
[1643445510953,0.25,97.078,97.021,47.00235389]
[1643445511356,0.25,97.078,97.021,45.5847]
[1643445511958,6.0,97.079,97.022,1.41765389]
[1643445512357,6.0,97.079,97.024,1.41765389]
[1643445512757,6.0,97.079,97.022,1.41765389]
[1643445513360,0.25,97.078,97.022,1.41765389]
[1643445513959,0.25,97.078,97.021,45.5847]
[1643445524174,6.0,97.079,97.021,45.5847]
[1643445524575,6.0,97.079,97.018,1.41765389]
[1643445524798,6.0,97.079,97.008,1.41765389]
[1643445524999,6.0,97.07,97.008,1.41765389]
[1643445525201,5.5,97.069,97.007,1.41765389]
[1643445525400,6.0,97.07,97.006,1.41765389]
[1643445525600,0.25,97.068,97.006,1.41765389]
[1643445525800,38.28688468,97.069,97.002,1.41765389]
[1643445526199,38.28688468,97.069,96.998,1.41765389]
[1643445526400,38.28688468,97.069,97.0,1.41765389]
[1643445527001,15.47,97.06,97.001,1.41765389]
[1643445527200,29.42,97.06,97.001,1.41765389]
[1643445527401,6.0,97.05,97.0,1.41765389]
[1643445527601,39.94561731,97.049,97.0,1.41765389]
[1643445527803,40.19561731,97.049,97.0,1.41765389]
[1643445528001,6.0,97.039,96.999,1.41765389]
[1643445528202,40.19561731,97.049,97.001,1.41765389]
[1643445528404,40.19561731,97.049,97.005,1.41765389]
[1643445528602,6.0,97.039,97.0,1.41765389]
[1643445528802,0.25,97.038,96.999,1.41765389]
[1643445529003,0.25,97.038,97.001,1.41765389]
[1643445529302,0.25,97.038,97.0,1.41765389]
[1643445529602,0.25,97.038,96.999,1.41765389]
[1643445529802,0.25,97.038,97.002,1.41765389]
[1643445530002,0.25,97.038,97.001,1.41765389]
[1643445531103,0.25,97.038,96.999,1.41765389]
[1643445531804,0.25,97.038,97.004,1.41765389]
[1643445532205,0.25,97.038,97.006,1.41765389]
[1643445532806,0.25,97.038,97.008,1.41765389]
[1643445533008,0.25,97.038,97.007,1.41765389]
[1643445533206,0.25,97.038,97.009,1.41765389]
[1643445533406,0.25,97.038,97.001,1.41765389]
[1643445533606,0.25,97.038,97.005,1.41765389]
[1643445533806,0.25,97.038,96.955,47.7819]
[1643445533807,0.25,97.038,97.004,1.41765389]
[1643445534206,0.25,97.038,97.005,1.41765389]
[1643445534406,0.25,97.038,96.956,2.19469125]
[1643445534407,0.25,97.038,97.011,1.41765389]
[1643445534609,0.25,97.038,97.012,1.41765389]
[1643445535007,0.25,97.038,97.01,1.41765389]
[1643445535611,6.0,97.039,97.012,1.41765389]
[1643445535809,6.0,97.039,97.013,1.41765389]
[1643445536010,39.94561731,97.049,97.014,1.41765389]
[1643445536208,39.94561731,97.049,97.012,1.41765389]
[1643445536413,39.94561731,97.049,97.015,1.41765389]
[1643445536616,39.94561731,97.049,97.017,1.41765389]
[1643445536813,0.25,97.048,97.014,1.41765389]
[1643445537311,6.0,97.039,97.011,1.41765389]
[1643445537512,6.0,97.039,97.013,1.41765389]
[1643445537711,0.25,97.038,97.013,1.41765389]
[1643445538817,0.25,97.038,97.012,1.41765389]
[1643445540421,0.25,97.048,97.012,1.41765389]
[1643445540620,0.25,97.048,97.013,1.41765389]
[1643445541024,6.0,97.039,97.013,1.41765389]
[1643445541425,0.25,97.038,97.013,1.41765389]
[1643445541825,0.25,97.038,97.012,1.41765389]
[1643445542226,0.25,97.038,97.01,1.41765389]
[1643445542427,6.0,97.039,97.009,1.41765389]
[1643445542927,0.25,97.038,97.009,1.41765389]
[1643445543962,0.25,97.038,97.004,1.41765389]
[1643445544359,0.25,97.038,97.002,1.41765389]
[1643445544861,0.25,97.038,97.005,1.41765389]
[1643445545060,0.25,97.038,97.006,1.41765389]
[1643445546965,0.25,97.038,97.007,1.41765389]
[1643445548062,0.25,97.038,97.003,1.41765389]
[1643445548262,0.25,97.038,96.997,1.41765389]
[1643445548466,0.25,97.038,97.001,1.41765389]
[1643445548664,0.25,97.038,96.971,23.2211]
[1643445548665,0.25,97.038,96.999,1.41765389]
[1643445549268,0.25,97.038,96.998,1.41765389]
[1643445549465,0.25,97.038,96.999,1.41765389]
[1643445549866,0.25,97.048,96.999,1.41765389]
[1643445550467,0.25,97.048,96.998,1.41765389]
[1643445550865,0.25,97.048,96.999,1.41765389]
[1643445551268,0.25,97.048,97.001,1.41765389]
[1643445551669,6.0,97.039,97.001,1.41765389]
[1643445551866,0.25,97.038,97.001,1.41765389]
[1643445552273,0.25,97.038,97.0,1.41765389]
[1643445552468,0.25,97.038,97.001,1.41765389]
[1643445552668,0.25,97.038,97.0,1.41765389]
[1643445553870,0.25,97.038,97.002,1.41765389]
[1643445554472,0.25,97.038,97.005,1.41765389]
[1643445555871,70.0,97.037,96.978,2.8373996]
[1643445556071,6.0,97.027,96.965,2.8373996]
[1643445556274,0.25,97.026,96.963,2.8373996]
[1643445556671,36.38159495,97.026,96.963,2.8373996]
[1643445556872,36.38159495,97.026,96.962,2.8373996]
[1643445557071,36.38159495,97.026,96.956,3.84896008]
[1643445557072,6.0,97.016,96.964,2.8373996]
[1643445557273,0.25,97.015,96.965,2.8373996]
[1643445557472,0.25,97.015,96.966,2.8373996]
[1643445557873,0.25,97.015,96.965,2.8373996]
[1643445559075,0.25,97.015,96.966,2.8373996]
[1643445559277,0.25,97.015,96.967,2.8373996]
[1643445559476,0.25,97.015,96.971,2.8373996]
[1643445559676,0.25,97.015,96.968,2.8373996]
[1643445559878,0.25,97.015,96.967,2.8373996]
[1643445560079,0.25,97.015,96.966,2.8373996]
[1643445560281,0.25,97.015,96.966,8.8373996]
[1643445560481,0.25,97.015,96.964,2.8373996]
[1643445560679,0.25,97.015,96.967,3.84896008]
[1643445560881,0.25,97.015,96.965,2.8373996]
[1643445561282,6.0,97.016,96.964,2.8373996]
[1643445561484,6.0,97.016,96.965,2.8373996]
[1643445561683,6.0,97.016,96.966,2.8373996]
[1643445562502,6.0,97.016,96.964,2.8373996]
[1643445562801,0.25,97.015,96.966,2.8373996]
[1643445563202,0.25,97.015,96.962,2.8373996]
[1643445563902,0.25,97.015,96.964,2.8373996]
[1643445564107,0.25,97.015,96.965,2.8373996]
[1643445564903,15.469,97.06,96.965,2.8373996]
[1643445565104,66.387,97.1,96.975,6.0]
[1643445565308,66.387,97.1,96.984,2.8373996]
[1643445565604,66.387,97.1,96.994,6.0]
[1643445566003,66.387,97.1,96.978,24.8472]
[1643445566004,6.0,97.057,96.995,6.03444308]
[1643445566304,6.0,97.057,96.996,3.84896008]
[1643445566503,6.0,97.056,96.996,2.185483]
[1643445566708,42.63598302,97.066,96.997,3.84896008]
[1643445566905,6.0,97.056,96.997,3.84896008]
[1643445567706,6.0,97.046,96.997,3.84896008]
[1643445568505,6.0,97.056,96.997,3.84896008]
[1643445569310,0.25,97.055,96.997,3.84896008]
[1643445571514,0.25,97.055,96.994,3.84896008]
[1643445572109,0.25,97.055,96.994,6.03444308]
[1643445572309,0.25,97.055,96.995,33.33039533]
[1643445572913,0.25,97.055,96.996,3.84896008]
[1643445574311,0.25,97.055,96.995,3.84896008]
[1643445574515,0.25,97.055,96.997,3.84896008]
[1643445574912,0.25,97.055,96.998,30.50001027]
[1643445575312,6.0,97.056,96.998,30.50001027]
[1643445575513,6.0,97.056,97.008,6.0]
[1643445575814,15.46,97.12,97.009,0.25]
[1643445576013,15.46,97.12,97.01,6.0]
[1643445576214,2.95669142,97.116,97.01,8.185483]
[1643445576414,15.46,97.12,97.019,6.0]
[1643445576615,15.46,97.12,97.021,6.0]
[1643445576616,40.03786119,97.098,97.021,6.0]
[1643445576815,40.03786119,97.098,97.022,0.25]
[1643445577413,6.0,97.088,97.03,6.0]
[1643445577614,6.0,97.088,97.02,23.22]
[1643445577815,0.25,97.087,97.02,23.22]
[1643445578016,9.20669142,97.087,97.02,23.22]
[1643445578214,2.95669142,97.086,97.02,23.22]
[1643445578414,0.25,97.085,97.02,23.22]
[1643445578615,6.0,97.076,97.02,23.22]
[1643445578816,36.77698691,97.075,97.02,23.22]
[1643445579016,6.0,97.065,97.02,23.22]
[1643445579417,0.25,97.064,97.02,23.22]
[1643445581316,0.25,97.074,97.02,23.22]
[1643445581519,6.0,97.065,97.02,23.22]
[1643445581917,0.25,97.064,97.02,23.22]
[1643445582319,6.0,97.065,97.02,23.22]
[1643445583722,0.25,97.064,97.02,23.22]
[1643445584323,0.25,97.074,97.02,23.22]
[1643445585023,6.0,97.065,97.02,23.22]
[1643445586228,6.0,97.065,96.994,2.8373996]
[1643445586427,6.0,97.065,96.995,23.7551]
[1643445586626,0.25,97.064,96.996,3.81972645]
[1643445586827,0.25,97.064,96.996,23.79743515]
[1643445587027,0.25,97.064,96.997,3.81972645]
[1643445587331,6.0,97.065,96.997,3.81972645]
[1643445587332,6.0,97.065,96.998,28.51075404]
[1643445587527,6.0,97.065,96.998,30.44623704]
[1643445587826,6.0,97.065,96.999,3.81972645]
[1643445588028,6.0,97.065,96.999,4.06972645]
[1643445588226,6.0,97.065,97.0,3.81972645]
[1643445588627,0.25,97.064,97.0,3.81972645]
[1643445589426,0.25,97.064,97.001,2.435483]
[1643445589827,0.25,97.064,97.002,6.00520945]
[1643445590226,0.25,97.064,97.003,6.25520945]
[1643445590427,0.25,97.064,97.004,3.81972645]
[1643445590629,0.25,97.064,97.004,6.00520945]
[1643445590829,0.25,97.064,96.998,28.26075404]
[1643445591029,0.25,97.064,96.999,3.82224518]
[1643445591229,0.25,97.064,96.999,4.07224518]
[1643445591428,0.25,97.064,97.0,3.82224518]
[1643445591628,0.25,97.064,97.0,8.84512778]
[1643445591830,0.25,97.074,97.001,2.435483]
[1643445592029,0.25,97.074,97.001,6.25772818]
[1643445592232,0.25,97.074,97.002,2.185483]
[1643445592430,0.25,97.074,97.006,2.8373996]
[1643445592831,0.25,97.074,97.007,0.25]
[1643445593030,0.25,97.074,97.008,3.82224518]
[1643445593630,0.25,97.074,97.007,23.8356]
[1643445594930,6.0,97.065,97.007,23.8356]
[1643445595133,6.0,97.065,97.008,3.82768915]
[1643445595330,0.25,97.064,97.008,3.82768915]
[1643445595730,0.25,97.064,97.007,23.8356]
[1643445595957,6.0,97.065,97.007,23.8356]
[1643445596130,6.0,97.065,97.008,3.82843989]
[1643445596735,6.0,97.065,96.997,2.8373996]
[1643445596935,6.0,97.065,96.989,2.8373996]
[1643445597136,6.0,97.065,96.991,3.83013335]
[1643445597336,21.74895611,97.064,96.991,3.83013335]
[1643445597536,6.0,97.054,96.982,24.5087]
[1643445597937,40.28786119,97.053,96.982,24.5087]
[1643445598137,6.0,97.043,96.982,24.5087]
[1643445598339,6.0,97.043,96.981,2.8373996]
[1643445598340,0.25,97.042,96.981,2.8373996]
[1643445598541,0.25,97.042,96.972,2.8373996]
[1643445598739,0.25,97.042,96.971,6.0]
[1643445598939,0.25,97.042,96.972,9.67629538]
[1643445599244,6.25,97.042,96.975,2.8373996]
[1643445599940,6.25,97.042,96.972,3.67629538]
[1643445599941,6.25,97.042,96.976,23.88]
[1643445600140,6.25,97.042,96.977,3.67629538]
[1643445604369,6.25,97.042,96.976,23.88]